{"text_format":"1","workbook":"xlsx","n_sheets":1,"sheets":["総会・学術大会予定"],"not_rendered":{"charts":0,"images":1,"macros":1,"external_links":0,"defined_names":0,"comments":1,"pivot_tables":0},"unopened":[],"bounds":{"document_bytes":16777216,"sheet_cells":100000,"rows_first":2000,"rows_last":500,"rows_between":2000,"halvings":0,"cell_chars":16384,"cell_head_chars":4096},"cells_cut":0,"cells_raw":0,"read":"whole","date_system":"1900"}

{"sheet":"総会・学術大会予定","index":0,"n_rows":38,"n_cols":12,"rows_kept":38,"cut":false,"hidden":false,"merged":[[1,1,1,2],[1,9,1,10],[0,0,0,11]]}
["総会・学術大会"]
[null,"会期",null,"■30日以内　■60日以内　■90日以内　■120日以内　※参加点数なし",null,null,null,null,null,"締切日",null,{"$f":"TODAY()","v":"2018-05-04"}]
[null,"開始日","終了日","学会名","回数","開催場所","都道府県","大会長","当番施設・役職","演題申込","事前登録","備考/開催時期"]
[{"$f":"A3+1","v":1},"2015-11-21",null,"日本口腔科学会（九州地方会）",51,null,null,null,null,null,null,"11月"]
[{"$f":"A4+1","v":2},"2016-03-05","2016-03-06","日本有病者歯科医療学会",28,null,null,null,null,null,null,"3月"]
[3,"2016-04-13","2016-04-15","日本形成外科学会",62]
[4,"2016-04-23","2016-04-24","日本口腔ケア学会※",16,null,null,null,null,null,null,"4月"]
[5,"2016-06-18","2016-06-19","日本歯科薬物療法学会",39,null,null,null,null,null,null,"6月"]
[6,"2016-08-10","2016-08-12","日本臨床口腔病理学会",29,null,null,null,null,null,null,"8月"]
[7,"2018-05-09","2018-05-13","国際口腔顎顔面外科学会",23,null,null,null,null,null,null,"10月"]
[8,"2018-05-11","2018-05-13","日本口腔科学会",72,"ウィンクあいち","愛知県","有地榮一郎","愛知学院大学歯学部歯科放射線学講座",null,null,"4月"]
[9,"2018-05-24","2018-05-25","日本口蓋裂学会",42,"大阪市中央公会堂","大阪府","楠本　健司","関西医科大学形成外科講座"]
[10,"2018-05-25","2018-05-27","日本歯科放射線学会",59,"神奈川歯科大学キャンパス内講堂","神奈川県","櫻井　孝","神奈川歯科大学 大学院歯学研究科 顎顔面病態診断治療学講座",null,null,"6月"]
[11,"2018-06-01",null,"日本化学療法学会",66,"岡山コンベンションセンター「第1会場（コンベンションホール）」","岡山県",null,null,null,null,"6月"]
[12,"2018-06-02",null,"大分NST研究会※",27,"ホルトホール大分　大会議室","大分県","石松 俊之","畏敬会井野辺病院",null,null,"1月"]
[13,"2018-06-14","2018-06-15","日本顎変形症学会",28,"ナレッジキャピタル　コングレコンベンションセンター","大阪府","古郷　幹彦","大阪大学大学院歯学研究科 口腔外科学第一教室"]
[14,"2018-06-14","2018-06-15","日本頭頸部癌学会",42,"京王プラザホテル","東京都","林　隆一","国立がん研究センター東病院　副院長・頭頸部外科",null,null,"6月"]
[15,"2018-06-28","2018-06-30","日本顎顔面補綴学会",35,"徳島大学大塚講堂(徳島大学蔵本キャンパス内)","徳島県","松山　美和","徳島大学大学院医歯薬学研究部口腔機能管理学分野"]
[16,"2018-06-30",null,"日本口腔外科学会（九州支部学術集会）",86,"福岡　国立病院機構九州医療センター 講堂","福岡県","吉川　博政","国立病院機構 九州医療センター 歯科口腔外科",null,null,"6月"]
[17,"2018-07-07","2018-07-08","日本歯科心身医学会",33,"北九州国際会議場、西日本総合展示場　新館AIM","福岡県","依田哲也","埼玉医科大学医学部口腔外科学教室",null,null,"7月"]
[18,"2018-07-07","2018-07-08","日本顎関節学会",31,"北九州国際会議場、西日本総合展示場　新館AIM","福岡県","鱒見進一","九州歯科大学歯学部歯学科口腔機能学講座顎口腔欠損再構築学分野",null,null,"7月"]
[19,"2018-07-11","2018-07-13","日本睡眠学会",43,"札幌コンベンションセンター","北海道","千葉 茂","旭川医科大学精神医学講座",null,null,"7月"]
[20,"2018-07-13","2018-07-14","日本口腔顎顔面外傷学会",20,"TKPガーデンシティPREMIUM 博多駅前","福岡県","喜久田利弘","福岡大学病院　歯科口腔外科 教授",null,null,"7月"]
[21,"2018-09-14","2018-09-15","日本口腔内科学会",28,"横浜市開港記念会館","神奈川県","里村 一人","鶴見大学歯学部口腔内科学講座",null,null,"9月"]
[22,"2018-09-14","2018-09-15","日本口腔診断学会",31,"横浜市開港記念会館","神奈川県","里村 一人","鶴見大学歯学部口腔内科学講座",null,null,"9月"]
[23,"2018-09-27","2018-09-29","日本癌学会",77,"大阪国際会議場 （グランキューブ大阪）","大阪府","森　正樹","大阪大学大学院 消化器外科",null,null,"10月"]
[24,"2018-10-04","2018-10-07","日本歯科麻酔学会",46,"奈良春日野国際フォーラム　甍","奈良県","砂田　勝久","日本歯科大学生命歯学部　歯科麻酔学講座",null,null,"10月"]
[25,"2018-10-18","2018-10-20","日本癌治療学会",56,"パシフィコ横浜","神奈川県","野々村　祝夫","大阪大学大学院医学系研究科　器官制御外科学講座（泌尿器科学）",null,null,"10月"]
[26,"2018-10-20","2018-10-21","日本レーザー歯学会",30,"日本歯科大学 生命歯学部 富士見ホール","東京都","沼部　幸博","日本歯科大学生命歯学部歯周病学講座",null,null,"7月"]
[27,"2018-11-08","2018-11-11","アジア口腔顎顔面外科学会",13,"台湾"]
[28,"2018-11-09","2018-11-10","国立病院総合医学会",72,"神戸国際会議場、神戸国際展示場","兵庫県","小西　郁生","国立病院機構京都医療センター",null,null,"11月"]
[29,"2018-11-23","2018-11-24","日本小児口腔外科学会",30,"埼玉医科大学かわごえクリニック","埼玉県","下山 哲夫","埼玉医科大学総合医療センター　歯科口腔外科",null,null,"11月"]
[30,"2018-12-01","2018-12-02","日本顎顔面インプラント学会",22,"東京国際交流館","東京都","河奈　裕正","慶應義塾大学医学部 歯科・口腔外科学教室",null,null,"11月"]
[31,"2019-01-24","2019-01-25","日本口腔腫瘍学会",37,"長崎ブリックホール","長崎県","梅田正博","長崎大学",null,null,"1月"]
[32,"2019-02-14","2019-02-15","日本静脈経腸栄養学会※",34,"グランドプリンスホテル新高輪・国際館パミール\nグランドプリンスホテル高輪・ＴＫＰガーデンシティ品川","東京都","福島　亮治","帝京大学医学部外科学講座",null,null,"2月"]
[33,"2019-10-25","2019-10-27","日本口腔外科学会",64,"北海道　札幌コンベンションセンター","北海道","高橋 　哲","東北大学大学院歯学研究科 口腔病態外科学講座 顎顔面・口腔外科学分野",null,null,"10月"]
[34,"2021-09-23","2021-09-25","日本歯科医学会",24,"パシフィコ横浜","神奈川県",null,null,null,null,"10月"]
[35,"平成31年",null,"日本医学会",30,null,"愛知県","齋藤　英彦"]